[Event "*** Titled Tuesday Blitz"]
[Site "Chess.com"]
[Date "2020.11.10"]
[Round "4"]
[White "Salem-AR"]
[Black "BocharovD"]
[Result "0-1"]
[WhiteElo "2915"]
[BlackElo "2772"]
[TimeControl "180+1"]
[EndTime "10:42:57 PST"]
[Termination "BocharovD won on time"]

1. d4 {[%clk 0:02:55.7]} 1... Nf6 {[%clk 0:02:58.1]} 2. c4 {[%clk 0:02:56.3]}
2... e6 {[%clk 0:02:57.8]} 3. Nc3 {[%clk 0:02:56.6]} 3... Bb4 {[%clk 0:02:57.7]}
4. e3 {[%clk 0:02:56.2]} 4... O-O {[%clk 0:02:56]} 5. Bd3 {[%clk 0:02:56.9]}
5... d5 {[%clk 0:02:54]} 6. Nf3 {[%clk 0:02:57.2]} 6... b6 {[%clk 0:02:54.1]} 7.
O-O {[%clk 0:02:57.1]} 7... Ba6 {[%clk 0:02:53.9]} 8. cxd5 {[%clk 0:02:57.3]}
8... Bxd3 {[%clk 0:02:53.4]} 9. Qxd3 {[%clk 0:02:56.8]} 9... exd5 {[%clk
0:02:53.4]} 10. Bd2 {[%clk 0:02:53.3]} 10... c6 {[%clk 0:02:49.5]} 11. Ne5
{[%clk 0:02:47.2]} 11... Re8 {[%clk 0:02:45.1]} 12. Rac1 {[%clk 0:02:38.9]}
12... Bd6 {[%clk 0:02:34.3]} 13. f4 {[%clk 0:02:37.6]} 13... c5 {[%clk
0:02:29.8]} 14. Be1 {[%clk 0:02:30.9]} 14... c4 {[%clk 0:02:16.6]} 15. Qf5
{[%clk 0:02:00.6]} 15... Qc8 {[%clk 0:02:08.7]} 16. Qxc8 {[%clk 0:02:00.3]}
16... Rxc8 {[%clk 0:02:07.9]} 17. Bh4 {[%clk 0:02:01.2]} 17... Bb4 {[%clk
0:02:02.8]} 18. Bxf6 {[%clk 0:01:50.7]} 18... Bxc3 {[%clk 0:02:00.6]} 19. bxc3
{[%clk 0:01:40.6]} 19... gxf6 {[%clk 0:01:59.4]} 20. Ng4 {[%clk 0:01:29.7]}
20... Kg7 {[%clk 0:01:58.6]} 21. Rf3 {[%clk 0:01:25.6]} 21... f5 {[%clk
0:01:46.7]} 22. Nf2 {[%clk 0:01:21.1]} 22... Nc6 {[%clk 0:01:43.1]} 23. Rg3+
{[%clk 0:01:17.9]} 23... Kh8 {[%clk 0:01:37.1]} 24. Rb1 {[%clk 0:01:07.9]} 24...
Rab8 {[%clk 0:01:31.5]} 25. Rg5 {[%clk 0:00:49.3]} 25... Ne7 {[%clk 0:01:30.1]}
26. Nh1 {[%clk 0:00:49.4]} 26... f6 {[%clk 0:00:57.8]} 27. Rh5 {[%clk
0:00:45.6]} 27... Kg7 {[%clk 0:00:58.3]} 28. Kf2 {[%clk 0:00:36]} 28... Kg6
{[%clk 0:00:56.5]} 29. Rh3 {[%clk 0:00:25.7]} 29... b5 {[%clk 0:00:54.4]} 30.
Rg3+ {[%clk 0:00:24.3]} 30... Kf7 {[%clk 0:00:52]} 31. Rh3 {[%clk 0:00:25.2]}
31... Kg6 {[%clk 0:00:50.6]} 32. Rg3+ {[%clk 0:00:23.6]} 32... Kf7 {[%clk
0:00:50.8]} 33. Rh3 {[%clk 0:00:24.3]} 33... Rh8 {[%clk 0:00:51]} 34. Ke2 {[%clk
0:00:18.6]} 34... a5 {[%clk 0:00:49.5]} 35. a3 {[%clk 0:00:19.2]} 35... h5
{[%clk 0:00:49.4]} 36. Ng3 {[%clk 0:00:07.3]} 36... Kg6 {[%clk 0:00:42.6]} 37.
Nf1 {[%clk 0:00:07.9]} 37... Nc6 {[%clk 0:00:40.3]} 38. Nd2 {[%clk 0:00:04.2]}
38... b4 {[%clk 0:00:35.5]} 39. axb4 {[%clk 0:00:05.1]} 39... axb4 {[%clk
0:00:35.2]} 40. cxb4 {[%clk 0:00:05.9]} 40... Nxb4 {[%clk 0:00:27.5]} 41. Nf3
{[%clk 0:00:06.2]} 41... Kf7 {[%clk 0:00:20.5]} 42. Ra1 {[%clk 0:00:05.7]} 42...
Ra8 {[%clk 0:00:17.1]} 43. Rxa8 {[%clk 0:00:04.7]} 43... Rxa8 {[%clk 0:00:18]}
44. Rxh5 {[%clk 0:00:05.3]} 44... Ra2+ {[%clk 0:00:18.6]} 45. Kd1 {[%clk
0:00:02.4]} 45... c3 {[%clk 0:00:18.9]} 46. Rh7+ {[%clk 0:00:02]} 46... Ke6
{[%clk 0:00:18.6]} 47. Rc7 {[%clk 0:00:02.3]} 47... c2+ {[%clk 0:00:18.6]} 48.
Kd2 {[%clk 0:00:02.1]} 48... Ra1 {[%clk 0:00:19]} 49. Ne1 {[%clk 0:00:01.5]}
49... Rd1+ {[%clk 0:00:18.5]} 50. Ke2 {[%clk 0:00:02.1]} 50... c1=Q {[%clk
0:00:19]} 51. Rxc1 {[%clk 0:00:01.6]} 51... Rxc1 {[%clk 0:00:19.9]} 52. Kd2
{[%clk 0:00:01.7]} 52... Ra1 {[%clk 0:00:20]} 0-1

[Event "*** Titled Tuesday Blitz"]
[Site "Chess.com"]
[Date "2020.11.10"]
[Round "4"]
[White "Witik"]
[Black "dennisodessa"]
[Result "1-0"]
[WhiteElo "2666"]
[BlackElo "2469"]
[TimeControl "180+1"]
[EndTime "10:43:01 PST"]
[Termination "Witik won by resignation"]

1. d4 {[%clk 0:03:00.9]} 1... e6 {[%clk 0:03:00.9]} 2. Bf4 {[%clk 0:02:58.9]}
2... Nf6 {[%clk 0:02:59.2]} 3. e3 {[%clk 0:02:58.7]} 3... c5 {[%clk 0:02:59.6]}
4. Nd2 {[%clk 0:02:57.2]} 4... Nc6 {[%clk 0:03:00.5]} 5. c3 {[%clk 0:02:57.4]}
5... b6 {[%clk 0:02:54.8]} 6. Ngf3 {[%clk 0:02:54.7]} 6... Bb7 {[%clk
0:02:55.1]} 7. Be2 {[%clk 0:02:47.2]} 7... Be7 {[%clk 0:02:54.9]} 8. h3 {[%clk
0:02:46.5]} 8... O-O {[%clk 0:02:53.2]} 9. O-O {[%clk 0:02:46.8]} 9... d5 {[%clk
0:02:51.8]} 10. Ne5 {[%clk 0:02:38.5]} 10... Nxe5 {[%clk 0:02:49.7]} 11. Bxe5
{[%clk 0:02:35.2]} 11... Bd6 {[%clk 0:02:43.8]} 12. f4 {[%clk 0:02:27.8]} 12...
Ne4 {[%clk 0:02:37.2]} 13. Nxe4 {[%clk 0:02:26.7]} 13... dxe4 {[%clk 0:02:38.1]}
14. c4 {[%clk 0:02:12]} 14... Bxe5 {[%clk 0:02:29.5]} 15. dxe5 {[%clk
0:01:53.7]} 15... Qxd1 {[%clk 0:02:26.4]} 16. Rfxd1 {[%clk 0:01:52.8]} 16...
Rfd8 {[%clk 0:02:25.5]} 17. Kf2 {[%clk 0:01:50.3]} 17... Kf8 {[%clk 0:02:21.8]}
18. g4 {[%clk 0:01:44.9]} 18... Ke7 {[%clk 0:02:15.5]} 19. Kg3 {[%clk
0:01:42.7]} 19... Rxd1 {[%clk 0:02:07.5]} 20. Rxd1 {[%clk 0:01:42]} 20... Rd8
{[%clk 0:02:07]} 21. Rxd8 {[%clk 0:01:41.5]} 21... Kxd8 {[%clk 0:02:07.3]} 22.
f5 {[%clk 0:01:42.1]} 22... Ke7 {[%clk 0:02:06.8]} 23. Kf4 {[%clk 0:01:42.1]}
23... f6 {[%clk 0:02:02]} 24. Bd1 {[%clk 0:01:39.2]} 24... exf5 {[%clk
0:01:21.9]} 25. gxf5 {[%clk 0:01:36.8]} 25... g5+ {[%clk 0:01:21.2]} 26. fxg6
{[%clk 0:01:35.5]} 26... hxg6 {[%clk 0:01:21.3]} 27. exf6+ {[%clk 0:01:32.9]}
27... Kxf6 {[%clk 0:01:21.9]} 28. h4 {[%clk 0:01:32.2]} 28... a6 {[%clk
0:00:35.5]} 29. Bc2 {[%clk 0:01:29.4]} 29... b5 {[%clk 0:00:35.9]} 30. Bxe4
{[%clk 0:01:23]} 30... Bc8 {[%clk 0:00:23.1]} 31. cxb5 {[%clk 0:01:19.8]} 31...
axb5 {[%clk 0:00:24]} 32. a3 {[%clk 0:01:18.7]} 32... Be6 {[%clk 0:00:19.5]} 33.
Bc6 {[%clk 0:01:02.2]} 33... b4 {[%clk 0:00:20.4]} 34. axb4 {[%clk 0:01:01.6]}
34... cxb4 {[%clk 0:00:21.3]} 35. e4 {[%clk 0:01:02.1]} 35... Bb3 {[%clk
0:00:17.5]} 36. e5+ {[%clk 0:01:01.2]} 36... Kf7 {[%clk 0:00:16.2]} 37. Bd7
{[%clk 0:00:55.3]} 37... Ke7 {[%clk 0:00:15.5]} 38. Bg4 {[%clk 0:00:54.9]} 38...
Kf7 {[%clk 0:00:14.6]} 39. Ke3 {[%clk 0:00:54.6]} 39... Ke7 {[%clk 0:00:12.8]}
40. Kd4 {[%clk 0:00:54.6]} 40... Bf7 {[%clk 0:00:13.4]} 41. Kc5 {[%clk
0:00:53.8]} 41... b3 {[%clk 0:00:14]} 42. Kd4 {[%clk 0:00:49]} 42... Bg8 {[%clk
0:00:13.4]} 43. Kc3 {[%clk 0:00:48]} 43... Bf7 {[%clk 0:00:07]} 44. Bd1 {[%clk
0:00:47]} 44... Bd5 {[%clk 0:00:07.4]} 45. Bxb3 {[%clk 0:00:46.9]} 45... Bxb3
{[%clk 0:00:07.6]} 46. Kxb3 {[%clk 0:00:46.9]} 46... Ke6 {[%clk 0:00:08.5]} 47.
Kc4 {[%clk 0:00:46.5]} 47... Kxe5 {[%clk 0:00:09.4]} 48. b4 {[%clk 0:00:39.4]}
48... Kf4 {[%clk 0:00:06.1]} 49. b5 {[%clk 0:00:38.9]} 49... Kg4 {[%clk
0:00:03.6]} 50. b6 {[%clk 0:00:39.1]} 50... Kxh4 {[%clk 0:00:03.9]} 51. b7
{[%clk 0:00:39.6]} 51... g5 {[%clk 0:00:04.2]} 52. b8=Q {[%clk 0:00:40]} 52...
Kh3 {[%clk 0:00:04.9]} 53. Kd3 {[%clk 0:00:38.4]} 53... g4 {[%clk 0:00:05.1]}
54. Ke2 {[%clk 0:00:38.3]} 54... g3 {[%clk 0:00:04.9]} 55. Kf3 {[%clk
0:00:38.2]} 55... Kh4 {[%clk 0:00:04.9]} 56. Qxg3+ {[%clk 0:00:37.6]} 56... Kh5
{[%clk 0:00:05.1]} 57. Qg7 {[%clk 0:00:34.7]} 1-0

[Event "*** Titled Tuesday Blitz"]
[Site "Chess.com"]
[Date "2020.11.10"]
[Round "4"]
[White "Jenia84"]
[Black "JozefKneht"]
[Result "0-1"]
[WhiteElo "2317"]
[BlackElo "2518"]
[TimeControl "180+1"]
[EndTime "10:43:02 PST"]
[Termination "JozefKneht won by checkmate"]

1. Nf3 {[%clk 0:03:00.9]} 1... Nf6 {[%clk 0:02:56.6]} 2. b3 {[%clk 0:02:55.4]}
2... d5 {[%clk 0:02:56.2]} 3. Bb2 {[%clk 0:02:54.8]} 3... e6 {[%clk 0:02:57.1]}
4. e3 {[%clk 0:02:54.6]} 4... Be7 {[%clk 0:02:58]} 5. c4 {[%clk 0:02:54.5]} 5...
O-O {[%clk 0:02:58.4]} 6. Nc3 {[%clk 0:02:53.5]} 6... c5 {[%clk 0:02:58.9]} 7.
cxd5 {[%clk 0:02:51.4]} 7... exd5 {[%clk 0:02:58.7]} 8. d4 {[%clk 0:02:51.2]}
8... Nc6 {[%clk 0:02:58.1]} 9. Be2 {[%clk 0:02:50.7]} 9... Bg4 {[%clk
0:02:55.2]} 10. O-O {[%clk 0:02:47.5]} 10... Bxf3 {[%clk 0:02:53.6]} 11. Bxf3
{[%clk 0:02:47.2]} 11... cxd4 {[%clk 0:02:53.7]} 12. exd4 {[%clk 0:02:45]} 12...
Qd7 {[%clk 0:02:54]} 13. Re1 {[%clk 0:02:43]} 13... Rfe8 {[%clk 0:02:48.7]} 14.
h3 {[%clk 0:02:36.9]} 14... Rad8 {[%clk 0:02:47]} 15. Qd2 {[%clk 0:02:32.4]}
15... Bb4 {[%clk 0:02:43.1]} 16. a3 {[%clk 0:02:30]} 16... Ne4 {[%clk
0:02:30.2]} 17. Bxe4 {[%clk 0:02:28.4]} 17... Bxc3 {[%clk 0:02:28.7]} 18. Bxh7+
{[%clk 0:02:24.6]} 18... Kxh7 {[%clk 0:02:29.6]} 19. Bxc3 {[%clk 0:02:17.9]}
19... Kg8 {[%clk 0:02:28.9]} 20. Qd3 {[%clk 0:02:08.6]} 20... a6 {[%clk
0:02:26.9]} 21. a4 {[%clk 0:02:06]} 21... Re7 {[%clk 0:02:17.6]} 22. Rxe7 {[%clk
0:02:00.9]} 22... Nxe7 {[%clk 0:02:17]} 23. Re1 {[%clk 0:01:57]} 23... Ng6
{[%clk 0:02:14.3]} 24. Ba5 {[%clk 0:01:48.4]} 24... Rc8 {[%clk 0:02:12]} 25. Qf3
{[%clk 0:01:40.1]} 25... Rc6 {[%clk 0:01:56.7]} 26. Qg3 {[%clk 0:01:25.8]} 26...
Nf8 {[%clk 0:01:30.2]} 27. Bb4 {[%clk 0:01:08.8]} 27... Ne6 {[%clk 0:01:29.2]}
28. Qg4 {[%clk 0:01:06.9]} 28... b6 {[%clk 0:01:27.7]} 29. g3 {[%clk 0:01:04.1]}
29... a5 {[%clk 0:01:27.1]} 30. Bd2 {[%clk 0:01:03.4]} 30... Qc8 {[%clk
0:01:25.3]} 31. Bh6 {[%clk 0:00:56.2]} 31... Qd7 {[%clk 0:01:21.4]} 32. Re5
{[%clk 0:00:45.2]} 32... Rd6 {[%clk 0:01:05.8]} 33. h4 {[%clk 0:00:29.1]} 33...
Kf8 {[%clk 0:01:05.6]} 34. Bd2 {[%clk 0:00:25.2]} 34... Rc6 {[%clk 0:01:01.3]}
35. Rh5 {[%clk 0:00:24.6]} 35... Rc2 {[%clk 0:00:54.1]} 36. Bg5 {[%clk
0:00:21.1]} 36... f6 {[%clk 0:00:53]} 37. Bxf6 {[%clk 0:00:18.6]} 37... Rc1+
{[%clk 0:00:40.4]} 38. Kh2 {[%clk 0:00:18]} 38... Kf7 {[%clk 0:00:39.6]} 39. Be5
{[%clk 0:00:16.9]} 39... Qe7 {[%clk 0:00:35.5]} 40. Rf5+ {[%clk 0:00:15.3]}
40... Kg8 {[%clk 0:00:35.2]} 41. Qg6 {[%clk 0:00:14.8]} 41... Rc6 {[%clk
0:00:33.4]} 42. Rh5 {[%clk 0:00:14]} 42... Nf8 {[%clk 0:00:32.2]} 43. Qxc6
{[%clk 0:00:12.7]} 43... Qf7 {[%clk 0:00:19]} 44. f4 {[%clk 0:00:08.8]} 44...
Qxh5 {[%clk 0:00:18.1]} 45. Qxd5+ {[%clk 0:00:09.2]} 45... Kh7 {[%clk
0:00:16.5]} 46. Qe4+ {[%clk 0:00:09.2]} 46... Kg8 {[%clk 0:00:15.3]} 47. d5
{[%clk 0:00:08.4]} 47... Qd1 {[%clk 0:00:10.9]} 48. d6 {[%clk 0:00:08]} 48...
Qd2+ {[%clk 0:00:09.7]} 49. Qg2 {[%clk 0:00:07]} 49... Qd3 {[%clk 0:00:08.8]}
50. Qb2 {[%clk 0:00:06]} 50... Nd7 {[%clk 0:00:08]} 51. Kh3 {[%clk 0:00:06]}
51... Nc5 {[%clk 0:00:07.4]} 52. Bxg7 {[%clk 0:00:05.5]} 52... Ne4 {[%clk
0:00:07.4]} 53. Qe5 {[%clk 0:00:04.6]} 53... Qxg3# {[%clk 0:00:06.7]} 0-1

[Event "*** Titled Tuesday Blitz"]
[Site "Chess.com"]
[Date "2020.11.10"]
[Round "4"]
[White "Infernal_XaM"]
[Black "Sibelephant"]
[Result "1-0"]
[WhiteElo "2835"]
[BlackElo "3080"]
[TimeControl "180+1"]
[EndTime "10:43:03 PST"]
[Termination "Infernal_XaM won by checkmate"]

1. d4 {[%clk 0:03:00.9]} 1... d5 {[%clk 0:02:59.4]} 2. c4 {[%clk 0:03:01.8]}
2... c6 {[%clk 0:02:59.6]} 3. Nf3 {[%clk 0:03:01.5]} 3... Nf6 {[%clk 0:02:59.9]}
4. Nc3 {[%clk 0:03:01.4]} 4... e6 {[%clk 0:03:00.2]} 5. e3 {[%clk 0:03:00.1]}
5... Nbd7 {[%clk 0:02:59.7]} 6. Qc2 {[%clk 0:03:00.4]} 6... Bd6 {[%clk
0:02:58.3]} 7. g4 {[%clk 0:03:00.5]} 7... Bb4 {[%clk 0:02:56.5]} 8. Bd2 {[%clk
0:02:57.6]} 8... b6 {[%clk 0:02:53.7]} 9. Bd3 {[%clk 0:02:45.9]} 9... dxc4
{[%clk 0:02:21.7]} 10. Bxc4 {[%clk 0:02:44.8]} 10... Bb7 {[%clk 0:02:21.9]} 11.
g5 {[%clk 0:02:43.1]} 11... c5 {[%clk 0:02:19.9]} 12. gxf6 {[%clk 0:02:20.3]}
12... Qxf6 {[%clk 0:02:19.8]} 13. Ne5 {[%clk 0:02:20.5]} 13... Bxh1 {[%clk
0:02:11.9]} 14. Bb5 {[%clk 0:02:11.9]} 14... O-O-O {[%clk 0:02:11]} 15. Nxd7
{[%clk 0:01:54.7]} 15... Rxd7 {[%clk 0:02:08.3]} 16. Bxd7+ {[%clk 0:01:42.3]}
16... Kxd7 {[%clk 0:02:08.5]} 17. Qa4+ {[%clk 0:01:38.7]} 17... Kc8 {[%clk
0:00:52.8]} 18. Qxa7 {[%clk 0:01:38.3]} 18... Bxc3 {[%clk 0:00:39.4]} 19. Bxc3
{[%clk 0:01:36.3]} 19... Bf3 {[%clk 0:00:34.1]} 20. Qxb6 {[%clk 0:01:29.4]}
20... Qg6 {[%clk 0:00:29.8]} 21. Qxc5+ {[%clk 0:01:05.5]} 21... Kb7 {[%clk
0:00:30.1]} 22. Qb5+ {[%clk 0:01:01.5]} 22... Ka8 {[%clk 0:00:30]} 23. Qa6+
{[%clk 0:00:53.7]} 23... Kb8 {[%clk 0:00:29.8]} 24. Bb4 {[%clk 0:00:51.2]} 24...
Qg1+ {[%clk 0:00:23.7]} 25. Qf1 {[%clk 0:00:50.7]} 25... Qxh2 {[%clk 0:00:13.8]}
26. Rc1 {[%clk 0:00:50.1]} 26... Qh1 {[%clk 0:00:09.6]} 27. Bd6+ {[%clk
0:00:45.3]} 27... Ka8 {[%clk 0:00:09.8]} 28. Qxh1 {[%clk 0:00:41.8]} 28... Bxh1
{[%clk 0:00:10]} 29. Rc7 {[%clk 0:00:41.9]} 29... h5 {[%clk 0:00:10.2]} 30. Rxf7
{[%clk 0:00:41.7]} 30... Bd5 {[%clk 0:00:09.8]} 31. Rxg7 {[%clk 0:00:36.4]}
31... h4 {[%clk 0:00:09.6]} 32. b4 {[%clk 0:00:28.8]} 32... h3 {[%clk
0:00:09.9]} 33. Bh2 {[%clk 0:00:27]} 33... Rc8 {[%clk 0:00:10.3]} 34. Kd2 {[%clk
0:00:27]} 34... Be4 {[%clk 0:00:10]} 35. Rc7 {[%clk 0:00:23.6]} 35... Rg8 {[%clk
0:00:10.2]} 36. Rf7 {[%clk 0:00:12.8]} 36... Rg2 {[%clk 0:00:09.7]} 37. Be5
{[%clk 0:00:12.7]} 37... h2 {[%clk 0:00:09.7]} 38. Bxh2 {[%clk 0:00:11.8]} 38...
Rxh2 {[%clk 0:00:10]} 39. b5 {[%clk 0:00:12]} 39... Bg6 {[%clk 0:00:06.7]} 40.
Rf6 {[%clk 0:00:11.6]} 40... Bf5 {[%clk 0:00:07.2]} 41. Ke2 {[%clk 0:00:11]}
41... Bg4+ {[%clk 0:00:07.5]} 42. Kd3 {[%clk 0:00:10.4]} 42... Bf5+ {[%clk
0:00:08.2]} 43. Kc4 {[%clk 0:00:07.9]} 43... Bh3 {[%clk 0:00:03]} 44. Kc5 {[%clk
0:00:07.5]} 44... Kb7 {[%clk 0:00:02.5]} 45. Rf7+ {[%clk 0:00:07.7]} 45... Kc8
{[%clk 0:00:03.2]} 46. a4 {[%clk 0:00:07.6]} 46... Rh1 {[%clk 0:00:03.4]} 47. a5
{[%clk 0:00:07.6]} 47... Rc1+ {[%clk 0:00:03.5]} 48. Kb6 {[%clk 0:00:08]} 48...
Bf1 {[%clk 0:00:04.2]} 49. a6 {[%clk 0:00:08.1]} 49... Rb1 {[%clk 0:00:04.6]}
50. a7 {[%clk 0:00:07.1]} 50... Rxb5+ {[%clk 0:00:01.1]} 51. Kc6 {[%clk
0:00:07.5]} 51... Rb7 {[%clk 0:00:01.1]} 52. Rf8# {[%clk 0:00:07.4]} 1-0

[Event "*** Titled Tuesday Blitz"]
[Site "Chess.com"]
[Date "2020.11.10"]
[Round "4"]
[White "BogdanDeac"]
[Black "albi1999"]
[Result "1-0"]
[WhiteElo "2799"]
[BlackElo "2542"]
[TimeControl "180+1"]
[EndTime "10:43:03 PST"]
[Termination "BogdanDeac won by resignation"]

1. Nf3 {[%clk 0:03:00.9]} 1... d5 {[%clk 0:03:00]} 2. d4 {[%clk 0:03:00.5]} 2...
Nf6 {[%clk 0:03:00]} 3. c4 {[%clk 0:03:00.5]} 3... e6 {[%clk 0:03:00.4]} 4. Nc3
{[%clk 0:03:00.4]} 4... c5 {[%clk 0:03:00.8]} 5. e3 {[%clk 0:02:59.8]} 5... Nc6
{[%clk 0:03:00.1]} 6. cxd5 {[%clk 0:02:59.5]} 6... exd5 {[%clk 0:02:58.5]} 7.
Bb5 {[%clk 0:02:59.3]} 7... cxd4 {[%clk 0:02:58.9]} 8. Nxd4 {[%clk 0:02:59.1]}
8... Bd7 {[%clk 0:02:58.7]} 9. Nf3 {[%clk 0:02:55.3]} 9... Be6 {[%clk 0:02:57]}
10. O-O {[%clk 0:02:53.2]} 10... Bd6 {[%clk 0:02:55.6]} 11. b3 {[%clk
0:02:53.5]} 11... O-O {[%clk 0:02:55.1]} 12. Bb2 {[%clk 0:02:53.8]} 12... Qe7
{[%clk 0:02:52.4]} 13. Ne2 {[%clk 0:02:50.5]} 13... Rfd8 {[%clk 0:02:46.1]} 14.
Rc1 {[%clk 0:02:46.4]} 14... Rac8 {[%clk 0:02:45]} 15. Ng3 {[%clk 0:02:45.5]}
15... a6 {[%clk 0:02:32.5]} 16. Bxc6 {[%clk 0:02:41.2]} 16... bxc6 {[%clk
0:02:31.3]} 17. Nd4 {[%clk 0:02:41.4]} 17... Qd7 {[%clk 0:02:01.1]} 18. Qd3
{[%clk 0:02:26.4]} 18... c5 {[%clk 0:01:29.2]} 19. Ndf5 {[%clk 0:02:21.4]} 19...
c4 {[%clk 0:01:23.6]} 20. Qb1 {[%clk 0:02:15.7]} 20... Bxg3 {[%clk 0:01:16]} 21.
Nxg3 {[%clk 0:02:07.5]} 21... Qe7 {[%clk 0:01:06.3]} 22. Qa1 {[%clk 0:02:02.2]}
22... Ne8 {[%clk 0:00:59.5]} 23. Ne2 {[%clk 0:01:53.6]} 23... Bf5 {[%clk
0:00:56.9]} 24. Nf4 {[%clk 0:01:44.5]} 24... f6 {[%clk 0:00:49]} 25. Rfd1 {[%clk
0:01:40]} 25... Qf7 {[%clk 0:00:49.5]} 26. Bd4 {[%clk 0:01:38.3]} 26... g5
{[%clk 0:00:49]} 27. Ne2 {[%clk 0:01:33.3]} 27... Bd3 {[%clk 0:00:45.8]} 28. Ng3
{[%clk 0:01:24.5]} 28... h5 {[%clk 0:00:41.9]} 29. f3 {[%clk 0:01:18.2]} 29...
h4 {[%clk 0:00:42]} 30. Nh1 {[%clk 0:01:18.2]} 30... h3 {[%clk 0:00:41.1]} 31.
Nf2 {[%clk 0:01:10.7]} 31... hxg2 {[%clk 0:00:40.7]} 32. Nxd3 {[%clk 0:01:09.4]}
32... cxd3 {[%clk 0:00:41.6]} 33. Rxd3 {[%clk 0:01:09.7]} 33... Qh5 {[%clk
0:00:37.4]} 34. Rxc8 {[%clk 0:00:51.2]} 34... Rxc8 {[%clk 0:00:38.3]} 35. Qd1
{[%clk 0:00:51.5]} 35... Rc7 {[%clk 0:00:29.7]} 36. Rd2 {[%clk 0:00:42.2]} 36...
Kf7 {[%clk 0:00:19.6]} 37. Rxg2 {[%clk 0:00:38.4]} 37... Ng7 {[%clk 0:00:18.5]}
38. Bb6 {[%clk 0:00:33.2]} 38... Rd7 {[%clk 0:00:18.5]} 39. Qe2 {[%clk
0:00:05.8]} 39... Nf5 {[%clk 0:00:17.2]} 40. f4 {[%clk 0:00:06]} 40... Qxe2
{[%clk 0:00:11.3]} 41. Rxe2 {[%clk 0:00:06.9]} 41... gxf4 {[%clk 0:00:09.6]} 42.
exf4 {[%clk 0:00:07.1]} 42... d4 {[%clk 0:00:09.7]} 43. Kf2 {[%clk 0:00:07.2]}
43... Rd6 {[%clk 0:00:09.3]} 44. Bc5 {[%clk 0:00:06.6]} 44... Rd5 {[%clk
0:00:09.5]} 45. b4 {[%clk 0:00:07.2]} 45... a5 {[%clk 0:00:09.1]} 46. a3 {[%clk
0:00:07]} 46... axb4 {[%clk 0:00:09.7]} 47. axb4 {[%clk 0:00:07.9]} 47... Kg6
{[%clk 0:00:09.2]} 48. Kf3 {[%clk 0:00:07.2]} 48... Kh5 {[%clk 0:00:08.9]} 49.
Ke4 {[%clk 0:00:06.1]} 49... d3 {[%clk 0:00:04]} 50. Rd2 {[%clk 0:00:05.2]} 1-0

[Event "*** Titled Tuesday Blitz"]
[Site "Chess.com"]
[Date "2020.11.10"]
[Round "4"]
[White "AungTZ"]
[Black "martynkovaelena"]
[Result "1-0"]
[WhiteElo "2109"]
[BlackElo "2252"]
[TimeControl "180+1"]
[EndTime "10:43:03 PST"]
[Termination "AungTZ won on time"]

1. e4 {[%clk 0:03:00.9]} 1... e5 {[%clk 0:02:59.2]} 2. Nf3 {[%clk 0:02:58.7]}
2... Nc6 {[%clk 0:02:58.7]} 3. d4 {[%clk 0:02:58.6]} 3... exd4 {[%clk
0:02:58.1]} 4. Nxd4 {[%clk 0:02:59.4]} 4... Bc5 {[%clk 0:02:57.9]} 5. Nb3 {[%clk
0:02:58.1]} 5... Bb6 {[%clk 0:02:55.3]} 6. a4 {[%clk 0:02:59]} 6... a6 {[%clk
0:02:53.7]} 7. Be2 {[%clk 0:02:58]} 7... Nf6 {[%clk 0:02:52.9]} 8. Nc3 {[%clk
0:02:56.4]} 8... d6 {[%clk 0:02:52.5]} 9. O-O {[%clk 0:02:55.2]} 9... h6 {[%clk
0:02:51.6]} 10. Kh1 {[%clk 0:02:52.8]} 10... O-O {[%clk 0:02:51.1]} 11. f4
{[%clk 0:02:49.9]} 11... Re8 {[%clk 0:02:50.4]} 12. Bf3 {[%clk 0:02:48.4]} 12...
Be6 {[%clk 0:02:49.2]} 13. Nd5 {[%clk 0:02:32.7]} 13... Bxd5 {[%clk 0:02:38.3]}
14. exd5 {[%clk 0:02:32.1]} 14... Ne7 {[%clk 0:02:38.2]} 15. c4 {[%clk
0:02:23.4]} 15... Nf5 {[%clk 0:02:36.1]} 16. Qd3 {[%clk 0:02:19.7]} 16... Ne3
{[%clk 0:02:30.5]} 17. Re1 {[%clk 0:02:11]} 17... Neg4 {[%clk 0:02:21.5]} 18.
Rf1 {[%clk 0:01:56.6]} 18... Nf2+ {[%clk 0:02:14.2]} 19. Rxf2 {[%clk 0:01:55.9]}
19... Bxf2 {[%clk 0:02:14.6]} 20. Bd2 {[%clk 0:01:56.4]} 20... Qe7 {[%clk
0:02:07.6]} 21. Rf1 {[%clk 0:01:49.7]} 21... Ba7 {[%clk 0:02:05.1]} 22. Nd4
{[%clk 0:01:27.1]} 22... Nd7 {[%clk 0:01:58.2]} 23. b4 {[%clk 0:01:22]} 23... a5
{[%clk 0:01:48.5]} 24. Nf5 {[%clk 0:01:20.8]} 24... Qf8 {[%clk 0:01:40.7]} 25.
Bc3 {[%clk 0:01:20]} 25... f6 {[%clk 0:01:24.7]} 26. bxa5 {[%clk 0:00:55.1]}
26... Nc5 {[%clk 0:01:23.7]} 27. Qc2 {[%clk 0:00:55.2]} 27... g6 {[%clk
0:01:06.5]} 28. Nd4 {[%clk 0:00:52.8]} 28... f5 {[%clk 0:00:48]} 29. Ba1 {[%clk
0:00:30.9]} 29... Ne4 {[%clk 0:00:39.8]} 30. Ne6 {[%clk 0:00:26.4]} 30... Rxe6
{[%clk 0:00:31.9]} 31. dxe6 {[%clk 0:00:25]} 31... Nf2+ {[%clk 0:00:24.9]} 32.
Rxf2 {[%clk 0:00:23.2]} 32... Bxf2 {[%clk 0:00:23.8]} 33. Qc3 {[%clk 0:00:18.6]}
33... Kh7 {[%clk 0:00:23.5]} 34. Bxb7 {[%clk 0:00:12.5]} 34... Rb8 {[%clk
0:00:22.7]} 35. a6 {[%clk 0:00:12.5]} 35... Ba7 {[%clk 0:00:20.5]} 36. h3 {[%clk
0:00:09.3]} 36... Qe7 {[%clk 0:00:19.1]} 37. g4 {[%clk 0:00:08.4]} 37... Rg8
{[%clk 0:00:16]} 38. Bd5 {[%clk 0:00:07.6]} 38... fxg4 {[%clk 0:00:08.1]} 39.
hxg4 {[%clk 0:00:06.5]} 39... Qh4+ {[%clk 0:00:07.9]} 40. Kg2 {[%clk 0:00:03.8]}
40... Qxg4+ {[%clk 0:00:07.9]} 41. Kf1 {[%clk 0:00:04.2]} 41... Qxf4+ {[%clk
0:00:07]} 42. Ke2 {[%clk 0:00:05.1]} 42... Qe5+ {[%clk 0:00:06.3]} 43. Qxe5
{[%clk 0:00:04]} 43... dxe5 {[%clk 0:00:06.8]} 44. Bxe5 {[%clk 0:00:04.9]} 44...
Bb6 {[%clk 0:00:07.2]} 45. e7 {[%clk 0:00:04.5]} 45... Re8 {[%clk 0:00:06.4]}
46. Bf6 {[%clk 0:00:05.4]} 46... Bc5 {[%clk 0:00:04.8]} 47. Bc6 {[%clk
0:00:05.2]} 1-0